fUST/lending_fUST_20260205
["ID","MTS","AMOUNT","RATE_DAILY","PERIOD"]
[404546827,1770275449759,-500.0,0.00039535,10]
[404546828,1770275449769,-234.52,0.00039535,10]
[404546829,1770275449777,-3000.0,0.0003954,40]
[404546830,1770275449787,-3000.0,0.0003955,40]
[404546831,1770275449796,-3000.0,0.0003956,40]
[404546832,1770275449806,-151.98,0.00039561,120]
[404546833,1770275449815,-159.0,0.00039563,58]
[404546834,1770275449824,-3000.0,0.0003957,40]
[404546835,1770275449833,-3000.0,0.0003958,40]
[404546836,1770275449843,-3000.0,0.0003959,40]
[404546837,1770275449852,-3000.0,0.000396,40]
[404546838,1770275449862,-3000.0,0.0003961,40]
[404546839,1770275449872,-3000.0,0.0003962,40]
[404546840,1770275449881,-4600.993303,0.0003963,40]
[404546841,1770275449890,-151.98,0.00039661,120]
[404546842,1770275449899,-183.17669583,0.000397,120]
[404546843,1770275449909,-168.43686864,0.000397,120]
[404546844,1770275449918,-206.52994813,0.000397,120]
[404546845,1770275449927,-181.66763588,0.000397,120]
[404546846,1770275449938,-180.5951903,0.000397,120]
[404546847,1770275449950,-210.33696999,0.000397,120]
[404546848,1770275449959,-187.55399975,0.000397,120]
[404546849,1770275449968,-199.6146215,0.000397,120]
[404546850,1770275449979,-237.79489228,0.000397,120]
[404546851,1770275449989,-233.91840699,0.000397,120]
[404546852,1770275449999,-183.53889274,0.000397,120]
[404546853,1770275450009,-284.13434379,0.000397,120]
[404546854,1770275450020,-407.42646871,0.0003974,2]
[404546855,1770275450029,-151.98,0.00039761,120]
[404546856,1770275450039,-1278.33732699,0.00039857,10]
[404546857,1770275450049,-1236.65613201,0.00039857,10]
[404546858,1770275450058,-151.98,0.00039861,120]
[404546859,1770275450067,-1219.41955269,0.00039862,10]
[404546860,1770275450076,-1256.44108983,0.00039862,10]
[404546861,1770275450085,-1140.51352298,0.0003987,10]
[404546862,1770275450095,-151.98,0.00039961,120]
[404546863,1770275450105,-163.54067497,0.00039999,31]
[404546864,1770275450115,-199.52229636,0.00039999,31]
[404546865,1770275450125,-191.56230375,0.00039999,7]
[404546866,1770275450135,-381.91512958,0.00039999,7]
[404546867,1770275450144,-500.0,0.00039999,31]
[404546868,1770275450154,-379.40709635,0.00039999,31]
[404546869,1770275450163,-15869.2696116,0.0004,120]
[404546870,1770275450198,-1131.7984,0.0004,120]
[404546923,1770275644254,500.0,0.00013699,2]
[404546924,1770275655192,-373.18648497,0.00014247,2]
[404546925,1770275661637,5000.0,0.00014,2]
[404546926,1770275684512,5000.0,0.00014,2]
[404546927,1770275707519,2097.65591449,0.00014,2]
[404546930,1770275830772,2611.19144919,0.00039413,21]
[404546948,1770276307041,500.0,0.00013699,2]
[404546992,1770276632002,-797.14427897,0.00014247,2]
[404546994,1770276632011,-150.0,0.00014315,2]
[404546996,1770276632020,-177.0,0.00016315,2]
[404546998,1770276632030,-686.70160348,0.00018,2]
[404547005,1770276638092,-222400.46322604,0.00018,2]
[404547006,1770276638102,-4989.16468827,0.00018284,2]
[404547007,1770276638111,-204.0,0.00018315,2]
[404547008,1770276638121,-13153.63050532,0.00019,2]
[404547009,1770276638229,-231.0,0.00020315,2]
[404547010,1770276638241,-208.05,0.000204,2]
[404547011,1770276638250,-160.02,0.000204,2]
[404547012,1770276638260,-569.11434779,0.00022,14]
[404547013,1770276638270,-158.55,0.00022,7]
[404547014,1770276638280,-258.0,0.00022315,2]
[404547015,1770276638289,-285.0,0.00024315,2]
[404547016,1770276638299,-33510.3698701,0.000249,2]
[404547017,1770276638311,-168.0,0.0002521,2]
[404547018,1770276638320,-168.0,0.00025327,2]
[404547019,1770276638330,-168.0,0.00025412,2]
[404547020,1770276638339,-3997.0,0.00025494,7]
[404547021,1770276638350,-11170.12329,0.00025532,2]
[404547022,1770276638359,-500.0,0.00025542,2]
[404547023,1770276638369,-168.0,0.00025728,2]
[404547024,1770276638378,-168.0,0.00025774,2]
[404547025,1770276638390,-168.0,0.00025811,2]
[404547026,1770276638399,-500.0,0.00025816,2]
[404547027,1770276638408,-168.0,0.00025837,2]
[404547028,1770276638418,-168.0,0.00025845,2]
[404547029,1770276638427,-168.0,0.00025954,2]
[404547030,1770276638436,-100000.0,0.0002599,2]
[404547031,1770276638446,-270865.40969097,0.00026,2]
[404547333,1770276676390,300.0,0.00039419,20]
[404547334,1770276715147,300.0,0.00039419,20]
[404547335,1770276718982,-160.54888492,0.00021446,2]
[404547336,1770276735792,-500.0,0.00017999,2]
[404547337,1770276735823,-500.0,0.00017999,2]
[404547341,1770276929197,234.0,0.00028601,120]
[404547345,1770277383872,1000.0,0.00014,2]
[404547347,1770277510530,300.0,0.00039413,120]
[404547362,1770277761760,-952.0,0.00015,2]
[404547403,1770277832289,-192.0,0.00016403,2]
[404547405,1770277832299,-300.0,0.00016403,2]
[404547406,1770277832309,-150.0,0.00016404,2]
[404547408,1770277832319,-4975.51834798,0.00016404,2]
[404547409,1770277832329,-150.10285153,0.00017808,2]
[404547410,1770277832338,-500.0,0.00017999,2]
[404547411,1770277832348,-450.03875354,0.00017999,2]
[404547412,1770277832358,-340.83,0.00018281,2]
[404547413,1770277832368,-221.46739067,0.00018302,2]
[404547414,1770277832377,-177.0,0.00018404,2]
[404547415,1770277832387,-185.8523217,0.0001992,2]
[404547416,1770277832396,-204.0,0.00020404,2]
[404547417,1770277832406,-1113.76609048,0.00020404,2]
[404547426,1770277840667,-5491.02632762,0.00020404,2]
[404547427,1770277840676,-150.0,0.00021161,2]
[404547428,1770277840686,-2000.0,0.00021917,2]
[404547429,1770277840695,-597.77767073,0.0002283,2]
[404547430,1770277840706,-500.0,0.0002283,2]
[404547431,1770277840715,-500.0,0.0002283,2]
[404547432,1770277840724,-500.0,0.0002283,2]
[404547433,1770277840733,-500.0,0.0002283,2]
[404547434,1770277840743,-500.0,0.0002283,2]
[404547435,1770277840752,-500.0,0.0002283,2]
[404547436,1770277840761,-500.0,0.0002283,2]
[404547437,1770277840770,-116.06388011,0.0002283,2]
[404547438,1770277840782,-383.93611989,0.0002283,2]
[404547439,1770277840791,-169.25071439,0.0002283,2]
[404547440,1770277840800,-500.0,0.0002283,2]
[404547441,1770277840810,-500.0,0.0002283,2]
[404547442,1770277840819,-500.0,0.0002283,2]
[404547443,1770277840828,-500.0,0.0002283,2]
[404547444,1770277840837,-274.67946722,0.0002283,2]
[404547445,1770277840846,-500.0,0.0002283,2]
[404547446,1770277840856,-616.13060052,0.0002283,2]
[404547447,1770277840865,-500.0,0.0002283,2]
[404547448,1770277840874,-500.0,0.0002283,2]
[404547449,1770277840883,-264.88732728,0.0002283,2]
[404547460,1770277846414,-148.54470306,0.0002283,2]
[404547461,1770277846424,-500.0,0.0002283,2]
[404547462,1770277846433,-500.0,0.0002283,2]
[404547463,1770277846443,-500.0,0.0002283,2]
[404547464,1770277846454,-10450.6184953,0.00022834,2]
[404547465,1770277846464,-177.0,0.00023161,2]
[404547466,1770277846473,-4417.3877189,0.00023629,2]
[404547467,1770277846482,-204.0,0.00025161,2]
[404547468,1770277846491,-551.0,0.00025318,2]
[404547469,1770277846500,-551.0,0.00025541,2]
[404547470,1770277846510,-551.0,0.00025552,2]
[404547471,1770277846519,-551.0,0.00025573,2]
[404547472,1770277846528,-176.03222298,0.00025706,2]
[404547473,1770277846538,-215.71350138,0.00025765,2]
[404547474,1770277846547,-316.85800136,0.00025825,2]
[404547475,1770277846556,-551.0,0.00025966,2]
[404547476,1770277846567,-175.38844515,0.00025988,2]
[404547477,1770277846576,-500.0,0.00025989,2]
[404547478,1770277846585,-22869.3324594,0.0002599,2]
[404547479,1770277846595,-3812.35,0.0002599,10]
[404547480,1770277846604,-3176.96,0.0002599,10]
[404547481,1770277846614,-2647.46,0.0002599,10]
[404547482,1770277846623,-17796.04961713,0.00026,2]
[404547483,1770277846639,-1638.08,0.00026,2]
[404547484,1770277846905,-19731.32434386,0.00026,2]
[404547491,1770277926725,294.24,0.00030137,120]
[404547494,1770278063185,-4040.39163177,0.00024607,10]
[404547495,1770278063322,-257.771251,0.00024856,2]
[404547496,1770278063382,-4766.25901367,0.000259,2]
[404547497,1770278063436,-300.0,0.0002597,2]
[404547498,1770278063490,-288.98799285,0.00025972,2]
[404547499,1770278063545,-389.74108161,0.00025972,2]
[404547500,1770278063626,-500.0,0.00025999,2]
[404547501,1770278063704,-179.57006672,0.00025999,2]
[404547502,1770278063762,-197.18660747,0.00025999,2]
[404547503,1770278063819,-157.04800337,0.00025999,2]
[404547504,1770278063869,-50631.36129168,0.00026,2]
[404547505,1770278063923,-4438.61570482,0.00026,2]
[404547506,1770278063975,-551.0,0.00026002,2]
[404547507,1770278064029,-168.0,0.00026074,2]
[404547508,1770278064084,-3997.0,0.00026079,2]
[404547509,1770278064136,-4417.3877189,0.00026212,2]
[404547510,1770278064186,-168.0,0.00026219,2]
[404547511,1770278064233,-168.0,0.00026327,2]
[404547512,1770278064280,-168.0,0.00026414,2]
[404547513,1770278064328,-551.0,0.00026536,2]
[404547514,1770278064375,-168.0,0.00026551,2]
[404547515,1770278064422,-551.0,0.00026617,7]
[404547516,1770278064467,-168.0,0.00026714,2]
[404547517,1770278064513,-168.0,0.00026758,2]
[404547518,1770278064562,-168.0,0.00026859,2]
[404547519,1770278064610,-168.0,0.00026949,2]
[404547520,1770278064657,-168.0,0.00027021,2]
[404547521,1770278064706,-231.0,0.00027161,2]
[404547522,1770278064753,-551.0,0.00027205,2]
[404547523,1770278064803,-168.0,0.00027276,2]
[404547524,1770278064852,-551.0,0.00027476,7]
[404547525,1770278064900,-168.0,0.00027607,2]
[404547526,1770278064950,-3997.0,0.00027633,2]
[404547527,1770278064999,-168.0,0.00027664,7]
[404547528,1770278065050,-563.30311352,0.00027764,2]
[404547529,1770278065098,-513.75643174,0.000281,2]
[404547530,1770278065141,-445.41837898,0.00028101,2]
[404547531,1770278065182,-257.771251,0.00028209,2]
[404547532,1770278065224,-1000.0,0.00028674,30]
[404547533,1770278065265,-4417.3877189,0.00028795,2]
[404547534,1770278065309,-2206.22,0.00028835,10]
[404547535,1770278065352,-1838.52,0.00028835,10]
[404547536,1770278065394,-10291.1996067,0.00028846,2]
[404547537,1770278065438,-163.59,0.000289,7]
[404547538,1770278065482,-258.0,0.00029161,2]
[404547539,1770278065526,-1041.66666667,0.00029718,2]
[404547540,1770278065569,-388.28430249,0.00029764,2]
[404547541,1770278065608,-203.621143,0.00030784,30]
[404547542,1770278065648,-173.964469,0.00030875,30]
[404547543,1770278065764,-20582.3992135,0.0003098,2]
[404547544,1770278065805,-100000.0,0.0003099,2]
[404547545,1770278065847,-500.0,0.0003099,2]
[404547546,1770278065891,-160.02,0.00031,7]
[404547547,1770278065935,-285.0,0.00031161,2]
[404547548,1770278065999,-189.161668,0.00031247,2]
[404547549,1770278066048,-198.3992545,0.00031264,2]
[404547550,1770278066097,-4417.3877189,0.00031379,2]
[404547551,1770278066144,-218.44,0.000314,14]
[404547552,1770278066190,-257.771251,0.00031562,2]
[404547553,1770278066237,-790.17,0.00031651,2]
[404547554,1770278066284,-10291.1996067,0.0003197,2]
[404547555,1770278066337,-10291.1996067,0.00031979,2]
[404547556,1770278066390,-250.0,0.00031989,2]
[404547557,1770278066440,-209.40437684,0.00031989,2]
[404547558,1770278066487,-500.0,0.00031989,2]
[404547559,1770278066533,-1000.0,0.00031989,2]
[404547560,1770278066580,-250.0,0.00031989,2]
[404547561,1770278066626,-250.0,0.00031989,2]
[404547562,1770278066670,-500.0,0.00031989,2]
[404547563,1770278066715,-217.15233878,0.00031989,2]
[404547564,1770278066758,-1000.0,0.00031989,2]
[404547565,1770278066800,-250.0,0.00031989,2]
[404547566,1770278066840,-250.0,0.00031989,2]
[404547567,1770278066880,-500.0,0.00031989,2]
[404547568,1770278066936,-225.18697532,0.00031989,2]
[404547569,1770278066992,-1000.0,0.00031989,2]
[404547570,1770278067051,-250.0,0.00031989,2]
[404547571,1770278067109,-500.0,0.00031989,2]
[404547572,1770278067167,-233.51889341,0.00031989,2]
[404547573,1770278067223,-1000.0,0.00031989,2]
[404547574,1770278067282,-250.0,0.00031989,2]
[404547575,1770278067342,-500.0,0.00031989,2]
[404547576,1770278067397,-500.0,0.00031989,2]
[404547577,1770278067456,-242.15909246,0.00031989,2]
[404547578,1770278067509,-1000.0,0.00031989,2]
[404547579,1770278067562,-250.0,0.00031989,2]
[404547580,1770278067615,-250.0,0.00031989,2]
[404547581,1770278067671,-500.0,0.00031989,2]
[404547582,1770278067728,-251.11897888,0.00031989,2]
[404547583,1770278067779,-500.0,0.00031989,2]
[404547584,1770278067828,-1000.0,0.00031989,2]
[404547585,1770278067881,-250.0,0.00031989,2]
[404547586,1770278067931,-250.0,0.00031989,2]
[404547587,1770278067983,-500.0,0.00031989,2]
[404547588,1770278068041,-260.4103811,0.00031989,2]
[404547589,1770278068093,-500.0,0.00031989,2]
[404547590,1770278068149,-1000.0,0.00031989,2]
[404547591,1770278068193,-250.0,0.00031989,2]
[404547592,1770278068361,-500.0,0.00031989,2]
[404547593,1770278068410,-270.0455652,0.00031989,2]
[404547594,1770278068457,-1000.0,0.00031989,2]
[404547595,1770278068503,-250.0,0.00031989,2]
[404547596,1770278068550,-250.0,0.00031989,2]
[404547597,1770278068595,-500.0,0.00031989,2]
[404547598,1770278068634,-500.0,0.00031989,2]
[404547599,1770278068680,-280.03725112,0.00031989,2]
[404547600,1770278068724,-1000.0,0.00031989,2]
[404547601,1770278068767,-250.0,0.00031989,2]
[404547602,1770278068810,-250.0,0.00031989,2]
[404547603,1770278068849,-500.0,0.00031989,2]
[404547604,1770278068890,-500.0,0.00031989,2]
[404547605,1770278068930,-250.0,0.00031989,2]
[404547606,1770278068976,-290.39862941,0.00031989,2]
[404547607,1770278069024,-1000.0,0.00031989,2]
[404547608,1770278069075,-250.0,0.00031989,2]
[404547609,1770278069121,-250.0,0.00031989,2]
[404547610,1770278069163,-500.0,0.00031989,2]
[404547611,1770278069207,-250.0,0.00031989,2]
[404547612,1770278069252,-301.1433787,0.00031989,2]
[404547613,1770278069298,-250.0,0.00031989,2]
[404547614,1770278069340,-1000.0,0.00031989,2]
[404547615,1770278069386,-250.0,0.00031989,2]
[404547616,1770278069431,-500.0,0.00031989,2]
[404547617,1770278069479,-500.0,0.00031989,2]
[404547618,1770278069529,-250.0,0.00031989,2]
[404547619,1770278069576,-250.0,0.00031989,2]
[404547620,1770278069627,-500.0,0.00031989,2]
[404547621,1770278069677,-250.0,0.00031989,2]
[404547622,1770278069731,-250.0,0.00031989,2]
[404547623,1770278069779,-500.0,0.00031989,2]
[404547624,1770278069827,-250.0,0.00031989,2]
[404547625,1770278069875,-515.69967328,0.00031989,2]
[404547626,1770278069922,-250.0,0.00031989,2]
[404547627,1770278069967,-250.0,0.00031989,2]
[404547628,1770278070014,-250.0,0.00031989,2]
[404547629,1770278070060,-250.0,0.00031989,2]
[404547630,1770278070103,-250.0,0.00031989,2]
[404547631,1770278070146,-250.0,0.00031989,2]
[404547632,1770278070190,-250.0,0.00031989,2]
[404547633,1770278070236,-250.0,0.00031989,2]
[404547634,1770278070286,-250.0,0.00031989,2]
[404547635,1770278070363,-250.0,0.00031989,2]
[404547636,1770278070413,-250.0,0.00031989,2]
[404547637,1770278070461,-250.0,0.00031989,2]
[404547638,1770278070511,-250.0,0.00031989,2]
[404547639,1770278070561,-250.0,0.00031989,2]
[404547640,1770278070605,-250.0,0.00031989,2]
[404547641,1770278070647,-250.0,0.00031989,2]
[404547642,1770278070693,-250.0,0.00031989,2]
[404547643,1770278070736,-30873.5988202,0.0003199,2]
[404547644,1770278070776,-136063.73235689,0.00032,2]
[404547645,1770278070819,-250.0,0.00032,120]
[404547646,1770278070861,-487.0,0.00032,2]
[404547647,1770278070901,-487.0,0.00032,2]
[404547648,1770278070944,-487.0,0.00032,2]
[404547649,1770278070986,-487.0,0.00032,2]
[404547650,1770278071028,-718.37,0.00032,2]
[404547651,1770278071071,-185.132,0.00032318,32]
[404547652,1770278071112,-151.0,0.000325,17]
[404547653,1770278071155,-312.0,0.00033161,120]
[404547654,1770278071197,-374.53664846,0.00034,30]
[404547655,1770278071240,-250.0,0.00034,120]
[404547656,1770278071366,-189.161668,0.00034536,2]
[404547657,1770278071409,-163.59,0.000346,7]
[404547658,1770278071453,-151.0,0.000348,13]
[404547659,1770278071498,-191.937821,0.00034891,60]
[404547660,1770278071543,-257.771251,0.00034916,2]
[404547661,1770278071589,-339.0,0.00035161,120]
[404547662,1770278071628,-254.526429,0.00035605,60]
[404547663,1770278071834,1532.1,0.00028835,10]
[404547666,1770278107315,380.40857539,0.0003941,120]
[404547667,1770278109460,313.62662332,0.0003941,120]
[404547668,1770278109523,262.62093677,0.0003941,120]
[404547669,1770278109790,262.62093677,0.0003941,120]
[404547670,1770278109852,313.62662332,0.0003941,120]
[404547671,1770278110190,262.62093677,0.0003941,120]
[404547672,1770278110247,313.62662332,0.0003941,120]
[404547673,1770278110567,262.62093677,0.0003941,120]
[404547674,1770278110922,262.62093677,0.0003941,120]
[404547675,1770278111288,262.62093677,0.0003941,120]
[404547676,1770278111682,262.62093677,0.0003941,120]
[404547677,1770278112037,262.62093677,0.0003941,120]
[404547678,1770278147934,-155.73182908,0.000356,120]
[404547679,1770278147987,-231.952625,0.000357,60]
[404547680,1770278148039,-254.526428,0.00035709,60]
[404547681,1770278148093,-237.558,0.00035795,60]
[404547682,1770278148148,-151.97,0.00036674,60]
[404547683,1770278148203,-151.98,0.00036674,60]
[404547684,1770278148259,-151.97,0.00036674,60]
[404547685,1770278148314,-153.75,0.00036679,60]
[404547686,1770278148370,-151.98,0.00036727,60]
[404547687,1770278148427,-151.99,0.00036774,60]
[404547688,1770278148484,-151.99,0.00036774,60]
[404547689,1770278148541,-153.75,0.00036779,60]
[404547690,1770278148598,-153.75,0.00036879,60]
[404547691,1770278148656,-153.75,0.00036979,60]
[404547692,1770278148713,-153.75,0.00037079,60]
[404547693,1770278148770,-151.0,0.000371,11]
[404547694,1770278148825,-366.0,0.00037161,120]
[404547695,1770278148880,-153.75,0.00037179,60]
[404547696,1770278148934,-153.75,0.00037279,60]
[404547697,1770278148990,-153.75,0.00037379,60]
[404547698,1770278149045,-342.20949918,0.00037442,10]
[404547699,1770278149098,-836.97905945,0.00037442,10]
[404547700,1770278149155,-153.75,0.00037479,60]
[404547701,1770278149211,-153.75,0.00037579,60]
[404547702,1770278149271,-212.0499,0.000376,120]
[404547703,1770278149328,-153.75,0.00037679,60]
[404547704,1770278149383,-1003.76578556,0.00037732,15]
[404547705,1770278149439,-229.073786,0.00037763,60]
[404547706,1770278149497,-153.75,0.00037779,60]
[404547707,1770278149554,-153.75,0.00037879,60]
[404547708,1770278149614,-153.75,0.00037979,60]
[404547709,1770278149667,-200.0,0.00038,30]
[404547710,1770278149725,-200.0,0.00038,30]
[404547711,1770278149778,-200.0,0.00038,30]
[404547712,1770278149832,-200.0,0.00038,30]
[404547713,1770278149884,-200.0,0.00038,30]
[404547714,1770278149935,-200.0,0.00038,30]
[404547715,1770278149987,-200.0,0.00038,30]
[404547716,1770278150039,-200.0,0.00038,30]
[404547717,1770278150090,-200.0,0.00038,30]
[404547718,1770278150140,-200.0,0.00038,30]
[404547719,1770278150188,-200.0,0.00038,30]
[404547720,1770278150234,-200.0,0.00038,30]
[404547721,1770278150282,-200.0,0.00038,30]
[404547722,1770278150419,-200.0,0.00038,30]
[404547723,1770278150472,-200.0,0.00038,30]
[404547724,1770278150527,-156.98339018,0.00038,30]
[404547725,1770278150579,-166.0,0.00038,30]
[404547726,1770278150629,-198.3992545,0.00038,30]
[404547727,1770278150682,-153.75,0.00038079,60]
[404547728,1770278150734,-153.75,0.00038179,60]
[404547729,1770278150781,-342.20949918,0.0003823,10]
[404547730,1770278150829,-836.97905945,0.0003823,10]
[404547731,1770278150878,-153.75,0.00038279,60]
[404547732,1770278150927,-204.72505305,0.00038313,10]
[404547733,1770278150975,-500.0,0.00038356,120]
[404547734,1770278151022,-500.0,0.00038356,120]
[404547735,1770278151067,-500.0,0.00038356,120]
[404547736,1770278151111,-500.0,0.00038356,120]
[404547737,1770278151156,-500.0,0.00038356,120]
[404547738,1770278151201,-500.0,0.00038356,120]
[404547739,1770278151246,-500.0,0.00038356,120]
[404547740,1770278151295,-500.0,0.00038356,120]
[404547741,1770278151349,-500.0,0.00038356,120]
[404547742,1770278151399,-500.0,0.00038356,120]
[404547743,1770278151450,-500.0,0.00038356,120]
[404547744,1770278151501,-500.0,0.00038356,120]
[404547745,1770278151553,-500.0,0.00038356,120]
[404547746,1770278151603,-500.0,0.00038356,120]
[404547747,1770278151654,-500.0,0.00038356,120]
[404547748,1770278151705,-500.0,0.00038356,120]
[404547749,1770278151759,-500.0,0.00038356,120]
[404547750,1770278151812,-500.0,0.00038356,120]
[404547751,1770278151863,-500.0,0.00038356,120]
[404547752,1770278151914,-500.0,0.00038356,120]
[404547753,1770278151965,-500.0,0.00038356,120]
[404547754,1770278152018,-500.0,0.00038356,120]
[404547755,1770278152072,-561.45119714,0.00038356,120]
[404547756,1770278152129,-153.75,0.00038379,120]
[404547757,1770278152184,-200.0,0.000384,120]
[404547758,1770278152237,-1078.13,0.000384,14]
[404547759,1770278152292,-153.75,0.00038479,120]
[404547760,1770278152346,-153.75,0.00038579,120]
[404547761,1770278152400,-166.0,0.0003863,90]
[404547762,1770278152457,-153.75,0.00038679,120]
[404547763,1770278152514,-153.75,0.00038779,120]
[404547764,1770278152573,-153.75,0.00038879,120]
[404547765,1770278152628,-153.75,0.00038979,120]
[404547766,1770278152683,-155.0,0.00039,120]
[404547767,1770278152734,-1002.62,0.00039,30]
[404547768,1770278152783,-414.0,0.00039,30]
[404547769,1770278152837,-1481.13516646,0.00039,20]
[404547770,1770278152888,-236.66314203,0.00039,120]
[404547771,1770278152940,-10646.64566901,0.00039,120]
[404547772,1770278152993,-1424.06881525,0.00039016,10]
[404547773,1770278153047,-490.8901222,0.00039016,10]
[404547774,1770278153101,-342.20949918,0.00039018,10]
[404547775,1770278153157,-836.97905945,0.00039018,10]
[404547776,1770278153212,-3692.68730384,0.00039024,10]
[404547777,1770278153276,-153.75,0.00039079,120]
[404547778,1770278153329,-393.0,0.00039161,120]
[404547779,1770278153386,-153.75,0.00039179,120]
[404547780,1770278153530,-153.75,0.00039279,120]
[404547781,1770278153586,-153.75,0.00039379,120]
[404547782,1770278153645,-1276.75,0.000394,10]
[404547783,1770278153700,-1063.95,0.000394,10]
[404547784,1770278153756,-2656.47199524,0.0003941,20]
[404547785,1770278153809,-1424.06881525,0.0003941,10]
[404547786,1770278153862,-490.8901222,0.0003941,10]
[404547787,1770278153916,-342.20949918,0.00039413,10]
[404547788,1770278153968,-836.97905945,0.00039413,10]
[404547789,1770278154023,-3692.68730384,0.00039419,10]
[404547790,1770278154079,-1500.0,0.00039467,20]
[404547791,1770278154133,-1500.0,0.00039467,20]
[404547792,1770278154188,-1500.0,0.00039467,20]
[404547793,1770278154242,-1500.0,0.00039467,20]
[404547794,1770278154294,-1500.0,0.00039467,20]
[404547795,1770278154347,-1042.0,0.00039467,20]
[404547796,1770278154400,-1500.0,0.00039467,20]
[404547797,1770278154453,-1500.0,0.00039467,20]
[404547798,1770278154507,-1500.0,0.00039467,20]
[404547799,1770278154564,-1500.0,0.00039467,20]
[404547800,1770278154623,-1500.0,0.00039467,20]
[404547801,1770278154680,-1500.0,0.00039467,20]
[404547802,1770278154735,-1500.0,0.00039467,20]
[404547803,1770278154794,-153.75,0.00039479,120]
[404547804,1770278154851,-150.0,0.000395,39]
[404547805,1770278154913,-153.75,0.00039579,120]
[404547806,1770278154972,-153.75,0.00039679,120]
[404547807,1770278155035,-227.86094189,0.000397,120]
[404547808,1770278155097,-187.47258831,0.000397,120]
[404547809,1770278155153,-183.53889275,0.000397,120]
[404547810,1770278155205,-199.61462149,0.000397,120]
[404547811,1770278155261,-227.30747504,0.000397,120]
[404547812,1770278155312,-224.81849868,0.000397,120]
[404547813,1770278155366,-233.91840699,0.000397,120]
[404547814,1770278155417,-177.1572278,0.000397,120]
[404547815,1770278155469,-185.95017996,0.000397,120]
[404547816,1770278155525,-205.03430025,0.000397,120]
[404547817,1770278155584,-153.8421399,0.00039779,120]
[404547818,1770278155638,-1078.13,0.000398,14]
[404547819,1770278155691,-1424.06881525,0.00039804,10]
[404547820,1770278155743,-490.8901222,0.00039805,10]
[404547821,1770278155795,-342.20949918,0.00039807,10]
[404547822,1770278155845,-836.97905945,0.00039807,10]
[404547823,1770278155892,-3692.68730384,0.00039813,10]
[404547824,1770278155938,-43486.17488999,0.0004,120]
[404547825,1770278155983,-172.33237457,0.0004,30]
[404547826,1770278156030,-4433.75436467,0.0004,120]
[404547827,1770278156078,-1000.0,0.0004,10]
[404547828,1770278156128,-251.21,0.0004,30]
[404547829,1770278156180,-151.98,0.00040061,120]
[404547830,1770278156234,-151.98,0.00040161,120]
[404547831,1770278156287,-151.98,0.00040261,120]
[404547832,1770278156339,-166.0,0.00040274,90]
[404547833,1770278156394,-151.98,0.00040361,120]
[404547834,1770278156451,-151.98,0.00040461,120]
[404547835,1770278156582,-151.98,0.00040561,120]
[404547836,1770278156641,-151.98,0.00040661,120]
[404547837,1770278156699,-151.98,0.00040761,120]
[404547838,1770278156760,-151.98,0.00040861,120]
[404547839,1770278156810,-227.30747504,0.000409,120]
[404547840,1770278156865,-224.81849868,0.000409,120]
[404547841,1770278156919,-177.1572278,0.000409,120]